bitfinex/quotes_BTCUSD_20250314
["timestamp","ask_amount","ask_price","bid_price","bid_amount"]
[1741976435182,0.0003394,84554.0,84553.0,0.0478]
[1741976435375,0.0003394,84554.0,84553.0,0.296164]
[1741976435711,0.0003394,84554.0,84553.0,0.284338]
[1741976435915,0.0003394,84554.0,84553.0,0.236538]
[1741976436116,0.0003394,84554.0,84553.0,0.248364]
[1741976436317,0.0003394,84554.0,84553.0,0.236538]
[1741976436839,0.0003394,84554.0,84552.0,0.318539]
[1741976436974,0.0003394,84554.0,84553.0,0.236538]
[1741976437176,0.0003394,84554.0,84552.0,0.082]
[1741976437601,0.0003394,84554.0,84553.0,0.236538]
[1741976437798,0.011826,84556.0,84553.0,0.236538]
[1741976438112,0.248355,84557.0,84552.0,0.082]
[1741976438113,0.236533,84555.0,84552.0,0.082]
[1741976438315,0.236536,84554.0,84552.0,0.082]
[1741976438911,0.236538,84553.0,84552.0,0.082]
[1741976439310,0.236579,84538.0,84537.0,0.0828]
[1741976439489,0.011827,84546.0,84537.0,0.0828]
[1741976439697,0.23656,84545.0,84541.0,0.23657]
[1741976439896,0.3,84544.0,84542.0,0.236567]
[1741976440116,0.3,84544.0,84543.0,0.236566]
[1741976440563,0.3,84544.0,84543.0,0.248394]
[1741976440774,0.43752,84554.0,84553.0,0.236538]
[1741976441885,0.3,84553.0,84544.0,0.236557]
[1741976442093,0.3,84547.0,84544.0,0.236557]
[1741976442212,0.536554,84547.0,84542.0,0.236566]
[1741976442424,0.3,84547.0,84545.0,0.236559]
[1741976442634,0.3,84547.0,84546.0,0.236557]
[1741976442872,0.3,84547.0,84546.0,0.248384]
[1741976443072,0.3,84551.0,84548.0,0.236549]
[1741976443272,0.536545,84551.0,84549.0,0.236548]
[1741976443586,0.3,84551.0,84545.0,0.236559]
[1741976443787,0.3,84547.0,84541.0,0.236571]
[1741976443988,0.3,84545.0,84542.0,0.236568]
[1741976444285,0.53655,84549.0,84541.0,0.236571]
[1741976444489,0.3,84549.0,84544.0,0.236561]
[1741976444689,0.3,84549.0,84546.0,0.236555]
[1741976444919,0.3,84543.0,84538.0,0.236577]
[1741976445122,0.536566,84543.0,84540.0,0.236571]
[1741976445326,0.011828,84542.0,84531.0,0.0756696]
[1741976445498,0.3,84539.0,84532.0,0.248424]
[1741976445723,0.3,84539.0,84538.0,0.236579]
[1741976446112,0.3,84539.0,84537.0,0.236582]
[1741976446312,0.3,84539.0,84538.0,0.236579]
[1741976446903,0.3,84541.0,84539.0,0.236576]
[1741976447112,0.3,84541.0,84540.0,0.236574]
[1741976447517,0.3,84541.0,84536.0,0.236584]
[1741976447723,0.3,84541.0,84540.0,0.236574]
[1741976447934,0.3,84543.0,84541.0,0.236569]
[1741976448356,0.3,84543.0,84542.0,0.236568]
[1741976448945,0.3,84546.0,84545.0,0.23656]
[1741976449202,0.23656,84545.0,84543.0,0.236565]
[1741976449375,0.548387,84546.0,84541.0,0.236571]
[1741976449575,0.3,84543.0,84541.0,0.236571]
[1741976449781,0.3,84543.0,84542.0,0.236568]
[1741976450029,0.3,84543.0,84541.0,0.236571]
[1741976450209,0.536567,84543.0,84540.0,0.236574]
[1741976450374,0.236567,84543.0,84540.0,0.236574]
[1741976450570,0.011828,84543.0,84537.0,0.236582]
[1741976450829,0.011828,84543.0,84531.0,0.3240956]
[1741976450830,0.3,84532.0,84531.0,0.0756696]
[1741976451028,0.536596,84532.0,84531.0,0.0001696]
[1741976451235,0.548425,84532.0,84531.0,0.0001696]
[1741976452416,0.536596,84532.0,84531.0,0.0001696]
[1741976452621,0.548425,84532.0,84531.0,0.0001696]
[1741976453762,0.536592,84534.0,84531.0,0.2367686]
[1741976453971,0.311829,84534.0,84531.0,0.0001696]
[1741976454177,0.3,84534.0,84532.0,0.236594]
[1741976454322,0.3,84534.0,84531.0,0.0001696]
[1741976454962,0.536591,84534.0,84531.0,0.0001696]
[1741976455167,0.248425,84532.0,84531.0,0.0001696]
[1741976460967,0.548425,84532.0,84531.0,0.0001696]
[1741976465595,0.011829,84536.0,84531.0,0.0001696]
[1741976465596,0.02390982,84540.0,84539.0,0.011828]
[1741976465827,0.011826,84556.0,84548.0,0.011827]
[1741976466026,0.236529,84556.0,84549.0,0.011827]
[1741976466232,0.00932039,84555.0,84554.0,0.248361]
[1741976466868,0.0003394,84555.0,84554.0,0.248361]
[1741976470238,0.0003394,84555.0,84554.0,0.295061]
[1741976471743,0.0003394,84555.0,84554.0,0.372061]
[1741976472573,0.0003394,84555.0,84554.0,0.559541]
[1741976472779,4e-07,84555.0,84554.0,0.559541]
[1741976472977,4e-07,84555.0,84554.0,0.59385549]
[1741976473177,4e-07,84555.0,84554.0,0.64385549]
[1741976473382,0.0700004,84555.0,84554.0,0.64385549]
[1741976473802,0.0003394,84565.0,84564.0,0.248332]
[1741976474515,4e-07,84565.0,84564.0,0.39807285]
[1741976475597,0.18616873,84600.0,84599.0,0.248229]
[1741976475598,0.0003392,84600.0,84599.0,0.248229]
[1741976476385,0.01466864,84600.0,84599.0,0.248229]
[1741976477505,0.02648864,84600.0,84589.0,0.078]
[1741976477780,0.011821,84589.0,84582.0,0.078]
[1741976477976,0.3,84593.0,84588.0,0.011822]
[1741976478176,0.3,84593.0,84589.0,0.011821]
[1741976478395,0.3,84593.0,84592.0,0.011821]
[1741976478536,0.236478,84575.0,84573.0,0.0791]
[1741976478736,0.18582953,84580.0,84572.0,0.011824]
[1741976478967,0.011823,84577.0,84567.0,0.061224]
[1741976479165,0.011823,84574.0,84559.0,0.23652]
[1741976479329,0.28835071,84579.0,84564.0,0.011825]
[1741976479531,0.236473,84576.0,84568.0,0.011824]
[1741976479733,0.011822,84582.0,84573.0,0.011824]
[1741976479936,0.18582953,84590.0,84585.0,0.011822]
[1741976479937,0.32326953,84590.0,84585.0,0.011822]
[1741976480180,0.248235,84597.0,84588.0,0.011822]
[1741976480510,0.236426,84593.0,84589.0,0.236437]
[1741976480708,0.011821,84593.0,84587.0,0.23644]
[1741976480939,0.650323,84594.0,84588.0,0.011822]
[1741976481193,0.236432,84591.0,84586.0,0.248267]
[1741976481366,0.011821,84589.0,84582.0,0.248277]
[1741976481597,0.236445,84586.0,84582.0,0.236456]
[1741976481798,0.248265,84587.0,84581.0,0.248281]
[1741976481927,0.248265,84587.0,84582.0,0.236454]
[1741976482133,0.236445,84586.0,84583.0,0.236453]
[1741976482532,0.311822,84583.0,84571.0,0.011824]
[1741976482738,0.011824,84573.0,84567.0,0.011824]
[1741976482934,0.236485,84572.0,84568.0,0.236494]
[1741976483466,0.011824,84568.0,84564.0,0.236506]
[1741976483665,0.3,84573.0,84568.0,0.011824]
[1741976483860,0.236484,84572.0,84569.0,0.23649]
[1741976484269,0.536482,84573.0,84569.0,0.23649]
[1741976484651,0.011824,84572.0,84566.0,0.011825]
[1741976484878,0.536483,84573.0,84569.0,0.236493]
[1741976485373,0.536483,84573.0,84570.0,0.23649]
[1741976485570,0.236493,84569.0,84567.0,0.236498]
[1741976485773,0.236493,84569.0,84565.0,0.2366726]
[1741976486090,0.248317,84569.0,84565.0,0.0001696]
[1741976486311,0.236496,84568.0,84565.0,0.2366736]
[1741976486484,0.248317,84569.0,84565.0,0.2366736]
[1741976486680,0.248314,84571.0,84565.0,0.0119946]
[1741976486882,0.23649,84570.0,84566.0,0.236496]
[1741976487089,0.248314,84571.0,84567.0,0.236498]
[1741976487292,0.23649,84570.0,84567.0,0.236498]
[1741976487497,0.548326,84566.0,84565.0,0.0001696]
[1741976487898,0.685726,84566.0,84565.0,0.0001696]
[1741976488306,1.726726,84566.0,84565.0,0.0001696]
[1741976488484,0.3,84556.0,84554.0,0.0407596]
[1741976488681,0.536532,84556.0,84554.0,0.0407596]
[1741976488900,0.18582953,84564.0,84563.0,0.248335]
[1741976489099,0.3,84563.0,84561.0,0.236513]
[1741976489637,0.3,84563.0,84562.0,0.236512]
[1741976490602,0.536506,84565.0,84562.0,0.236512]
[1741976490781,0.3,84565.0,84563.0,0.236507]
[1741976490967,0.311825,84565.0,84561.0,0.236513]
[1741976491169,0.548331,84565.0,84562.0,0.236512]
[1741976491679,0.3,84566.0,84563.0,0.23651]
[1741976491882,0.3,84566.0,84557.0,0.248351]
[1741976491883,0.3,84560.0,84558.0,0.236524]
[1741976492199,0.3,84566.0,84562.0,0.011825]
[1741976492397,0.31454549,84566.0,84562.0,0.011825]
[1741976492599,0.55104649,84566.0,84563.0,0.236508]
[1741976492819,0.32637049,84566.0,84560.0,0.248341]
[1741976493125,0.3,84563.0,84562.0,0.248337]
[1741976493638,0.3,84563.0,84552.0,0.011827]
[1741976493841,0.236521,84559.0,84555.0,0.236532]
[1741976494042,0.24834,84561.0,84557.0,0.236525]
[1741976494619,0.236518,84560.0,84556.0,0.236527]
[1741976494822,0.236531,84556.0,84554.0,0.0407596]
[1741976494988,0.548358,84555.0,84554.0,0.0407596]
[1741976495449,3.043558,84555.0,84554.0,0.0407596]
[1741976495650,1.756858,84555.0,84554.0,0.0407596]
[1741976495852,1.80499885,84555.0,84554.0,0.02301917]
[1741976496143,1.9172595,84555.0,84554.0,4.3e-07]
[1741976496326,0.7559595,84555.0,84554.0,0.00017013]
[1741976496747,5.8664925,84555.0,84554.0,1.3e-07]
[1741976496948,0.91470666,84555.0,84554.0,1.3e-07]
[1741976497183,0.94378409,84555.0,84554.0,1.3e-07]
[1741976498610,0.548425,84532.0,84520.0,0.0001695]
[1741976498841,1.45164585,84532.0,84520.0,0.0001695]
[1741976499264,6.56217885,84532.0,84520.0,0.0001695]
[1741976500463,6.56217885,84532.0,84531.0,6e-07]
[1741976500669,1.62602088,84532.0,84531.0,6e-07]
[1741976500800,1.7082067,84532.0,84531.0,6e-07]
[1741976500998,1.6582067,84532.0,84531.0,6e-07]
[1741976501274,1.7082067,84532.0,84531.0,6e-07]
[1741976501845,2.4082067,84532.0,84531.0,6e-07]
[1741976502161,2.25144585,84532.0,84531.0,6e-07]
[1741976502898,0.311831,84521.0,84514.0,1e-08]
[1741976503118,0.548476,84515.0,84514.0,1e-08]
[1741976503324,0.685956,84515.0,84514.0,1e-08]
[1741976506142,0.3,84515.0,84514.0,1e-08]
[1741976507175,0.311832,84515.0,84514.0,1e-08]
[1741976507912,0.3,84515.0,84514.0,1e-08]
[1741976510838,0.3003396,84515.0,84514.0,0.24847901]
[1741976511193,0.5369836,84515.0,84514.0,1e-08]
[1741976511986,0.3003396,84515.0,84514.0,1e-08]
[1741976512439,0.3003396,84515.0,84514.0,0.23664701]
[1741976512882,0.3003396,84515.0,84514.0,0.24847901]
[1741976515297,0.3003396,84515.0,84514.0,0.23664701]
[1741976515495,0.3003396,84515.0,84514.0,1e-08]
[1741976515801,0.3003396,84515.0,84514.0,0.23664701]
[1741976516381,0.3003396,84515.0,84514.0,0.24847901]
[1741976516837,0.3003396,84515.0,84514.0,1e-08]
[1741976517017,0.3003396,84515.0,84514.0,0.23664701]
[1741976517360,0.3003396,84515.0,84514.0,1e-08]
[1741976517569,0.3003396,84515.0,84514.0,0.23664701]
[1741976518186,0.3003396,84515.0,84514.0,0.24847901]
[1741976518187,0.0003396,84515.0,84514.0,0.24847901]
[1741976522296,0.0003396,84515.0,84514.0,0.32807901]
[1741976524216,0.0003396,84515.0,84514.0,0.07960001]
[1741976524412,0.0003396,84515.0,84514.0,1e-08]
[1741976524616,0.0003396,84515.0,84514.0,0.23664701]
[1741976525836,0.0003396,84515.0,84514.0,0.24847901]
[1741976526346,0.0003396,84515.0,84514.0,0.23664701]
[1741976527240,0.0003396,84515.0,84514.0,0.24847901]
[1741976529084,0.0003396,84515.0,84514.0,1e-08]
[1741976529605,0.0003396,84515.0,84514.0,0.23664701]
[1741976529850,0.0003396,84515.0,84514.0,0.24847901]
[1741976531044,0.0003396,84515.0,84514.0,1e-08]
[1741976531243,0.3003396,84515.0,84514.0,1e-08]
[1741976531542,0.3003396,84515.0,84514.0,0.23664701]
[1741976531838,0.3003396,84515.0,84514.0,1e-08]
[1741976532158,0.3003396,84515.0,84514.0,0.23664701]
[1741976532528,0.5369836,84515.0,84514.0,1e-08]
[1741976532703,0.66839063,84515.0,84514.0,1e-08]
[1741976532905,0.5488156,84515.0,84514.0,1e-08]
[1741976534909,0.57227298,84515.0,84514.0,1e-08]
[1741976540393,0.65227298,84515.0,84514.0,1e-08]
[1741976542724,0.54852,84500.0,84499.0,0.0001695]
[1741976543194,0.536686,84500.0,84499.0,0.0001695]
[1741976543372,0.3,84500.0,84499.0,0.0001695]
[1741976543580,0.3,84500.0,84499.0,0.2368585]
[1741976543777,0.31365202,84500.0,84499.0,0.0001695]
[1741976544185,0.31365202,84500.0,84499.0,0.2486925]
[1741976544649,0.31365202,84500.0,84499.0,0.2368585]
[1741976545836,0.31365202,84500.0,84499.0,0.2486925]
[1741976546596,0.01365202,84500.0,84499.0,0.2486925]
[1741976546806,0.011833,84505.0,84501.0,0.236681]
[1741976546807,0.248508,84505.0,84501.0,0.236681]
[1741976547003,0.236675,84504.0,84501.0,0.236681]
[1741976547678,0.0089268,84505.0,84504.0,0.248508]
[1741976547949,0.236666,84508.0,84505.0,0.236671]
[1741976548125,0.18594883,84509.0,84506.0,0.236668]
[1741976548326,0.236658,84510.0,84505.0,0.011833]
[1741976548574,0.149312,84511.0,84508.0,0.011833]
[1741976548575,0.00876395,84511.0,84508.0,0.011833]
[1741976548780,0.00876395,84511.0,84507.0,0.011833]
[1741976548930,0.011833,84507.0,84502.0,0.23668]
[1741976549119,0.011833,84508.0,84502.0,0.248514]
[1741976549570,0.236668,84507.0,84504.0,0.236674]
[1741976549779,0.248492,84510.0,84504.0,0.236674]
[1741976549914,0.3,84509.0,84508.0,0.236663]
[1741976550119,0.3,84509.0,84506.0,0.236666]
[1741976550318,0.3,84507.0,84501.0,0.011834]
[1741976550746,0.3,84507.0,84505.0,0.236671]
[1741976551598,0.236669,84506.0,84501.0,0.011834]
[1741976551807,0.536673,84505.0,84501.0,0.236681]
[1741976551983,0.3,84505.0,84504.0,0.236675]
[1741976552243,0.3,84506.0,84505.0,0.236672]
[1741976552409,0.3,84503.0,84500.0,0.236683]
[1741976552607,0.3,84503.0,84502.0,0.23668]
[1741976553171,0.54852,84500.0,84499.0,0.0001695]
[1741976557662,0.3,84500.0,84499.0,0.2486925]
[1741976557837,0.005,84532.0,84511.0,0.248487]
[1741976557838,0.18594883,84530.0,84511.0,0.248487]
[1741976558192,0.01401119,84515.0,84514.0,0.248479]
[1741976558357,0.31401119,84515.0,84514.0,0.236647]
[1741976558559,0.0003396,84515.0,84514.0,0.236647]
[1741976560338,0.0003396,84515.0,84514.0,0.330879]
[1741976560706,0.01448504,84515.0,84514.0,0.330879]
[1741976560910,0.0003396,84515.0,84514.0,0.319047]
[1741976561262,0.0003396,84515.0,84514.0,0.236647]
[1741976561464,0.0003396,84515.0,84511.0,0.236654]
[1741976561652,0.0003396,84515.0,84512.0,0.236651]
[1741976561828,0.0003396,84515.0,84514.0,0.236647]
[1741976563039,0.0003396,84515.0,84511.0,0.236655]
[1741976563040,0.3003396,84515.0,84511.0,0.236653]
[1741976563244,0.3003396,84515.0,84508.0,0.236663]
[1741976563478,0.236655,84512.0,84509.0,0.23666]
[1741976563731,0.236655,84512.0,84503.0,0.011833]
[1741976563732,0.3,84508.0,84499.0,0.0001695]
[1741976564099,0.3,84508.0,84506.0,0.236669]
[1741976564650,0.3,84508.0,84507.0,0.236666]
[1741976565111,0.3,84509.0,84506.0,0.236669]
[1741976565457,0.536661,84509.0,84506.0,0.236669]
[1741976565652,0.3,84509.0,84508.0,0.236663]
[1741976565874,0.3,84509.0,84508.0,0.248496]
[1741976566088,0.313985,84515.0,84513.0,0.236647]
[1741976566369,0.313985,84515.0,84506.0,0.011833]
[1741976566602,0.55063,84515.0,84512.0,0.23665]
[1741976566802,0.313985,84515.0,84512.0,0.23665]
[1741976567025,0.313985,84515.0,84514.0,0.236647]
[1741976567181,0.013985,84515.0,84514.0,0.236647]
[1741976567746,0.03253954,84515.0,84514.0,0.236647]
[1741976570000,0.03253954,84515.0,84514.0,0.248479]
[1741976573903,0.03253954,84515.0,84512.0,0.0787]
[1741976574081,0.011832,84513.0,84509.0,0.23666]
[1741976574285,0.011832,84514.0,84507.0,0.011833]
[1741976574485,0.236655,84512.0,84507.0,0.011833]
[1741976574687,0.248485,84512.0,84508.0,0.236663]
[1741976574893,0.248485,84512.0,84509.0,0.236661]
[1741976575099,0.236658,84510.0,84507.0,0.248499]
[1741976575506,0.248484,84513.0,84508.0,0.236663]
[1741976575704,0.011832,84514.0,84509.0,0.248492]
[1741976575911,0.28101554,84515.0,84510.0,0.248488]
[1741976576242,0.23665,84513.0,84510.0,0.248488]
[1741976576938,0.23665,84513.0,84510.0,0.236656]
[1741976577134,0.011833,84505.0,84500.0,0.2368546]
[1741976577342,0.248497,84508.0,84503.0,0.011833]
[1741976577543,0.236669,84507.0,84504.0,0.236675]
[1741976578147,0.248497,84508.0,84505.0,0.23667]
[1741976578353,0.248497,84508.0,84500.0,0.0120036]
[1741976578354,0.536675,84504.0,84502.0,0.23668]
[1741976578562,0.3,84504.0,84502.0,0.23668]
[1741976578719,0.3,84504.0,84503.0,0.236677]
[1741976578919,0.3,84504.0,84503.0,0.24851]
[1741976579633,0.3,84507.0,84504.0,0.236672]
[1741976580056,0.3,84505.0,84503.0,0.24851]
[1741976580214,0.3,84505.0,84503.0,0.236677]
[1741976580422,0.3,84505.0,84501.0,0.011834]
[1741976580620,0.011833,84504.0,84500.0,0.0001696]
[1741976580876,0.248508,84504.0,84501.0,0.236683]
[1741976581090,0.236677,84505.0,84502.0,0.23668]
[1741976581289,0.3,84504.0,84502.0,0.23668]
[1741976581490,0.3,84504.0,84503.0,0.24851]
[1741976582329,0.01855514,84507.0,84506.0,0.248502]
[1741976582956,0.03038814,84507.0,84500.0,0.0001696]
[1741976583153,0.236683,84501.0,84500.0,0.0001696]
[1741976583361,0.248517,84501.0,84500.0,0.0001696]
[1741976583963,0.236683,84502.0,84500.0,0.0001696]
[1741976584170,0.011833,84503.0,84500.0,0.0001696]
[1741976584171,0.3,84503.0,84500.0,0.0001696]
[1741976584398,0.3,84503.0,84502.0,0.23668]
[1741976585029,0.3,84503.0,84502.0,0.248514]
[1741976585665,0.3,84506.0,84504.0,0.236673]
[1741976585872,0.3,84506.0,84505.0,0.236672]
[1741976586279,0.3,84506.0,84504.0,0.248506]
[1741976586475,0.3,84506.0,84504.0,0.236673]
[1741976586699,0.53667,84506.0,84502.0,0.23668]
[1741976587020,0.3,84504.0,84501.0,0.248517]
[1741976587723,0.3,84504.0,84501.0,0.236683]
[1741976587923,0.3,84506.0,84504.0,0.236672]
[1741976588360,0.3,84506.0,84503.0,0.011833]
[1741976588533,0.3,84504.0,84502.0,0.24178944]
[1741976588741,0.236683,84502.0,84500.0,0.0001696]
[1741976589581,0.548511,84503.0,84500.0,0.2368546]
[1741976589927,0.236681,84502.0,84500.0,0.0001696]
[1741976590122,0.236682,84502.0,84500.0,0.0001696]
[1741976590333,0.536678,84503.0,84500.0,0.2368546]
[1741976590562,0.3,84503.0,84501.0,0.236681]
[1741976590737,0.3,84505.0,84503.0,0.236676]
[1741976591149,0.3,84505.0,84504.0,0.236675]
[1741976591359,0.3,84505.0,84503.0,0.236676]
[1741976591537,0.31855502,84505.0,84503.0,0.236676]
[1741976591873,0.01855502,84505.0,84503.0,0.236676]
[1741976592072,0.55522702,84505.0,84502.0,0.248509]
[1741976592436,0.31855502,84505.0,84503.0,0.236677]
[1741976593220,0.31855502,84505.0,84500.0,0.0001696]
[1741976593423,0.3,84503.0,84500.0,0.2368526]
[1741976593702,0.3,84503.0,84502.0,0.23668]
[1741976594258,0.53668,84503.0,84500.0,0.0001696]
[1741976594471,0.53668,84503.0,84500.0,0.2368556]
[1741976594676,0.31855502,84505.0,84500.0,0.0120036]
[1741976594860,0.55556722,84505.0,84501.0,0.248515]
[1741976595058,0.236677,84503.0,84500.0,0.2368556]
[1741976595260,0.236683,84502.0,84500.0,0.0001696]
[1741976595455,0.536675,84504.0,84501.0,0.236681]
[1741976595683,0.311833,84504.0,84500.0,0.0001696]
[1741976596079,0.26740422,84505.0,84500.0,0.0001696]
[1741976596350,0.236683,84502.0,84500.0,0.0001696]
[1741976596670,0.236683,84501.0,84500.0,0.0001696]
[1741976597497,0.236683,84502.0,84500.0,0.0001696]
[1741976597908,0.236676,84504.0,84500.0,0.0001696]
[1741976598124,0.236676,84504.0,84501.0,0.236681]
[1741976599105,0.236681,84502.0,84500.0,0.2368506]
[1741976599319,0.236683,84501.0,84500.0,0.0001696]
[1741976600180,0.536683,84501.0,84500.0,0.0001696]
[1741976601188,0.548517,84501.0,84500.0,0.0001696]
[1741976602409,0.685957,84501.0,84500.0,0.0001696]
[1741976602612,0.548531,84496.0,84495.0,8e-05]
[1741976604287,0.56709022,84496.0,84495.0,8e-05]
[1741976604727,0.31855922,84496.0,84495.0,0.011915]
[1741976605058,0.548531,84496.0,84495.0,8e-05]
[1741976607401,0.3,84496.0,84495.0,8e-05]
[1741976607583,0.548531,84496.0,84495.0,0.0002496]
[1741976607788,0.56708937,84496.0,84495.0,0.0002496]
[1741976608010,1.56708937,84496.0,84495.0,0.0002496]
[1741976609826,1.55525537,84496.0,84495.0,0.0002496]
[1741976610032,1.56708937,84496.0,84495.0,0.0002496]
[1741976610249,1.61087655,84496.0,84495.0,0.0002496]
[1741976610452,1.56708937,84496.0,84495.0,0.0002496]
[1741976611308,1.31855837,84496.0,84495.0,0.2487846]
[1741976611493,1.01855837,84496.0,84495.0,0.3244846]
[1741976613335,1.01855837,84496.0,84495.0,0.2487846]
[1741976613939,1.0,84496.0,84495.0,0.3315846]
[1741976614386,1.0,84496.0,84495.0,0.3792846]
[1741976618185,1.0,84496.0,84495.0,0.2369496]
[1741976618390,1.3,84496.0,84495.0,0.0002496]
[1741976618585,1.3185565,84496.0,84495.0,0.0002496]
[1741976618772,1.3185565,84496.0,84495.0,0.2487846]
[1741976625721,1.3185565,84496.0,84495.0,0.0002496]
[1741976627751,1.685971,84496.0,84495.0,0.0002496]
[1741976628955,1.7095059,84496.0,84495.0,0.0002496]
[1741976629177,1.7795059,84496.0,84495.0,0.0002496]
[1741976629341,1.72806626,84496.0,84495.0,0.0002496]
[1741976629676,1.79806626,84496.0,84495.0,0.0002496]
[1741976630118,0.011837,84477.0,84469.0,0.0001696]
[1741976630322,0.686027,84477.0,84469.0,0.0001696]
[1741976630857,0.70459028,84477.0,84469.0,0.0001696]
[1741976631757,0.75380305,84477.0,84469.0,0.0001696]
[1741976631958,0.71913113,84477.0,84469.0,0.0001696]
[1741976632534,0.83870616,84477.0,84469.0,0.0001696]
[1741976632690,0.87337808,84477.0,84469.0,0.0001696]
[1741976633390,0.248608,84470.0,84469.0,0.0001696]
[1741976633595,0.311841,84447.0,84446.0,0.0001696]
[1741976633803,0.3,84447.0,84446.0,0.0001696]
[1741976634644,0.03713564,84456.0,84453.0,0.236818]
[1741976634860,0.03713564,84456.0,84455.0,0.236812]
[1741976635283,0.03713564,84456.0,84453.0,0.236816]
[1741976635503,0.03713564,84456.0,84454.0,0.236814]
[1741976635671,0.03713564,84456.0,84455.0,0.01184]
[1741976637329,0.03713564,84456.0,84454.0,0.236814]
[1741976638221,0.03713564,84456.0,84452.0,0.23682]
[1741976638450,0.03713564,84456.0,84454.0,0.236813]
[1741976639225,0.3,84461.0,84458.0,0.236803]
[1741976639431,0.3,84464.0,84459.0,0.2368]
[1741976639636,0.236792,84462.0,84459.0,0.2368]
[1741976639839,0.548627,84464.0,84460.0,0.236797]
[1741976640017,0.248628,84464.0,84455.0,0.01184]
[1741976640218,0.3,84462.0,84455.0,0.01184]
[1741976640429,0.3,84462.0,84454.0,0.01184]
[1741976640629,0.3,84460.0,84457.0,0.236804]
[1741976641146,0.3,84460.0,84459.0,0.236801]
[1741976641525,0.00911402,84466.0,84463.0,0.236788]
[1741976641732,0.3,84467.0,84462.0,0.236792]
[1741976642180,0.0455,84491.0,84454.0,0.0799]
[1741976642404,0.0455,84491.0,84452.0,0.0474]
[1741976642405,0.236726,84486.0,84479.0,0.236745]
[1741976642609,0.011836,84482.0,84446.0,0.0001696]
[1741976642827,0.03280912,84491.0,84460.0,0.011839]
[1741976642828,0.248594,84475.0,84460.0,0.011839]
[1741976643023,0.3,84472.0,84460.0,0.011839]
[1741976643224,0.3,84472.0,84468.0,0.236774]
[1741976643457,0.3,84472.0,84471.0,0.236767]
[1741976643638,0.0818392,84504.0,84467.0,0.011838]
[1741976643639,0.236759,84474.0,84467.0,0.011838]
[1741976643775,0.236759,84474.0,84466.0,0.011839]
[1741976643977,0.236759,84474.0,84467.0,0.011838]
[1741976644378,0.011837,84475.0,84471.0,0.236767]
[1741976644580,0.011837,84477.0,84469.0,0.236772]
[1741976644776,0.23676,84474.0,84467.0,0.236778]
[1741976644983,0.23676,84474.0,84468.0,0.236776]
[1741976645189,0.248592,84476.0,84468.0,0.23677]
[1741976645412,0.236756,84475.0,84469.0,0.236771]
[1741976645608,0.236756,84475.0,84466.0,0.0001696]
[1741976645609,0.236771,84470.0,84466.0,0.0001696]
[1741976645816,0.248605,84471.0,84466.0,0.2369486]
[1741976646415,0.011837,84474.0,84466.0,0.0120086]
[1741976646677,0.548616,84467.0,84466.0,0.0001696]
[1741976649598,0.3,84462.0,84459.0,0.234942]
[1741976650203,0.01184,84457.0,84448.0,0.24867]
[1741976650414,0.3,84456.0,84454.0,0.236814]
[1741976650766,0.3,84456.0,84455.0,0.236812]
[1741976651436,0.3,84456.0,84454.0,0.248654]
[1741976651437,0.01856579,84462.0,84461.0,0.236795]
[1741976651670,0.31856579,84462.0,84461.0,0.248634]
[1741976651922,0.31856579,84462.0,84461.0,0.324234]
[1741976652154,0.31856579,84462.0,84461.0,0.372234]
[1741976652442,0.31856579,84462.0,84461.0,0.32321385]
[1741976652669,0.01856579,84462.0,84461.0,0.32321385]
[1741976652904,0.01856579,84462.0,84460.0,0.236798]
[1741976653129,0.31856579,84462.0,84454.0,0.0756]
[1741976653327,0.536805,84458.0,84454.0,0.0756]
[1741976653508,0.236809,84457.0,84454.0,0.312415]
[1741976653713,0.3,84458.0,84454.0,0.0756]
[1741976654115,0.236812,84455.0,84454.0,0.0756]
[1741976654346,0.23681,84456.0,84453.0,0.236815]
[1741976654512,0.248647,84457.0,84453.0,0.236817]
[1741976654712,0.01184,84457.0,84453.0,0.236817]
[1741976654907,0.236809,84456.0,84453.0,0.248657]
[1741976655155,0.236809,84456.0,84452.0,0.248661]
[1741976655359,0.3,84458.0,84452.0,0.248659]
[1741976655706,0.3,84460.0,84458.0,0.236803]
[1741976655906,0.3,84460.0,84459.0,0.248641]
[1741976656656,0.536783,84466.0,84461.0,0.248634]
[1741976656857,0.311839,84466.0,84461.0,0.236795]
[1741976657036,0.3,84467.0,84461.0,0.248634]
[1741976657237,0.011839,84463.0,84458.0,0.2368]
[1741976657501,0.3,84461.0,84460.0,0.236798]
[1741976657711,0.3,84461.0,84460.0,0.248637]
[1741976658536,0.3,84464.0,84461.0,0.236795]
[1741976659564,0.236786,84466.0,84461.0,0.2334528]
[1741976659986,0.3,84464.0,84461.0,0.2334528]
[1741976660371,0.3,84464.0,84458.0,0.01184]
[1741976660372,0.311839,84464.0,84458.0,0.236801]
[1741976660584,0.3,84461.0,84459.0,0.236799]
[1741976660740,0.3,84461.0,84460.0,0.236798]
[1741976661572,0.55535879,84462.0,84460.0,0.236798]
[1741976661744,0.31856579,84462.0,84460.0,0.236798]
[1741976661950,0.55535879,84462.0,84460.0,0.236798]
[1741976662372,0.31856579,84462.0,84461.0,0.236795]
[1741976662595,0.01856579,84462.0,84461.0,0.236795]
[1741976663180,0.01856579,84462.0,84461.0,0.248634]
[1741976663786,0.01856579,84462.0,84461.0,0.236795]
[1741976664840,0.01856579,84462.0,84461.0,0.331134]
[1741976666306,0.01856579,84462.0,84461.0,0.379034]
[1741976667290,0.01856579,84462.0,84461.0,0.0825]
[1741976667491,0.01856579,84462.0,84461.0,0.248634]
[1741976667715,0.236786,84465.0,84461.0,0.236795]
[1741976668046,0.236809,84457.0,84455.0,0.082]
[1741976668225,0.011839,84460.0,84456.0,0.236809]